Cogmind - Beta 10.1 @@@ ROGUE MODE // 2020.09.21 @ 17:28:54 Player: zzxc Result: Destroyed by as-97863 with Assembled Heavy Rifle Performance ------------- Evolutions (0) 0 Regions Visited (4) 800 Robots Destroyed (0) 0 Value Destroyed (0) 0 Prototype IDs (0) 0 Alien Tech Used (0) 0 Bonus (300) 300 TOTAL SCORE: 1100 Bonus ------- Aligned with FarCom 300 Cogmind --------- Core Integrity 0/250 Matter 127/300 Energy 99/100 System Corruption 0% Temperature Cool (0) Movement Core (50) Location -9/Mines Parts ------- > --- POWER (1) -------- (None) > --- PROPULSION (2) --- (None) > --- UTILITY (2) ------ (None) > --- WEAPON (2) ------- (None) > --- INVENTORY (4) ---- (None) Peak State ------------ None Favorites ----------- Power None Propulsion None Utility None Weapon None Build | -11 -10 -10 -10 -9 ------- Run | Scr Mat Min Exi Min Slots Evolved . | . . . . . Power . | . . . . . Propulsion . | . . . . . Utility . | . . . . . Weapon . | . . . . . Parts Attached . | . . . . . Power . | . . . . . Engine . | . . . . . Core . | . . . . . Reactor . | . . . . . Propulsion . | . . . . . Treads . | . . . . . Leg . | . . . . . Wheel . | . . . . . Hover . | . . . . . Flight . | . . . . . Utility . | . . . . . Device . | . . . . . Storage . | . . . . . Processor . | . . . . . Hackware . | . . . . . Protection . | . . . . . Artifact . | . . . . . Weapon . | . . . . . Energy Gun . | . . . . . Energy Cannon . | . . . . . Ballistic Gun . | . . . . . Ballistic Cannon . | . . . . . Launcher . | . . . . . Special Weapon . | . . . . . Impact Weapon . | . . . . . Slashing Weapon . | . . . . . Piercing Weapon . | . . . . . Special Melee Weapon . | . . . . . Unidentified Prototypes . | . . . . . Parts Lost . | . . . . . Power . | . . . . . Propulsion . | . . . . . Utility . | . . . . . Weapon . | . . . . . Highest Loss Streak . | . . . . . Average Slot Usage (%) . | . . . . . Naked Turns 351 | . 34 85 76 156 Heaviest Build . | . . . . . Greatest Support 3 | 3 3 3 3 3 Greatest Overweight (x) . | . . . . . Average Overweight (x) . | . . . . . Largest Inventory Capacity 4 | 4 4 4 4 4 Average Capacity 4 | 4 4 4 4 4 Most Carried . | . . . . . Average Carried . | . . . . . Final Capacity 4 | 4 4 4 4 4 Final Carried . | . . . . . Class Distribution -------------------- 100% | Mutant Dominant Class ---------------- Mutant | -10/Materials Mutant | -10/Mines Mutant | -10/Exiles Mutant | -9/Mines Resources | -11 -10 -10 -10 -9 ----------- Run | Scr Mat Min Exi Min Matter Collected 27 | . . . . 27 Remotely . | . . . . . Salvage Created . | . . . . . Parts . | . . . . . Haulers Intercepted . | . . . . . Recyclers Shooed . | . . . . . Parts Field Recycled . | . . . . . Retrieved Matter . | . . . . . Parts Self-Destructed . | . . . . . Prevented . | . . . . . Kills | -11 -10 -10 -10 -9 ------- Run | Scr Mat Min Exi Min Combat Hostiles Destroyed . | . . . . . Classes Destroyed . | . . . . . Best Kill Streak . | . . . . . Combat Bots Only . | . . . . . Max Kills in Single Turn . | . . . . . Gunslinging . | . . . . . Exploded . | . . . . . Melee . | . . . . . Uniques/NPCs Destroyed . | . . . . . Combat | -11 -10 -10 -10 -9 -------- Run | Scr Mat Min Exi Min Damage Taken 255 | . 20 186 . 49 Core 255 | . 20 186 . 49 Absorbed by Shields . | . . . . . Core Remaining (%) 100 | 100 . . . . Volleys Fired . | . . . . . Largest . | . . . . . Hottest . | . . . . . Shots Fired . | . . . . . Gun . | . . . . . Cannon . | . . . . . Launcher . | . . . . . Special . | . . . . . Kinetic . | . . . . . Thermal . | . . . . . Explosive . | . . . . . Electromagnetic . | . . . . . Robot Hit Streak . | . . . . . Robot Miss Streak . | . . . . . Penetration Max . | . . . . . Secondary Targets . | . . . . . Shots Hit Robots . | . . . . . Core Hits . | . . . . . Critical Hits . | . . . . . Critical Kills . | . . . . . Critical Parts Destroyed . | . . . . . Melee Attacks . | . . . . . Impact . | . . . . . Slashing . | . . . . . Piercing . | . . . . . Sneak Attacks . | . . . . . Combat Hostiles . | . . . . . Follow-up Attacks . | . . . . . Damage Inflicted . | . . . . . Guns . | . . . . . Cannons . | . . . . . Explosions . | . . . . . Melee . | . . . . . Ramming . | . . . . . Kinetic . | . . . . . Thermal . | . . . . . Explosive . | . . . . . Electromagnetic . | . . . . . Impact . | . . . . . Slashing . | . . . . . Piercing . | . . . . . Highest Corruption . | . . . . . Average Corruption . | . . . . . Corruption Purged . | . . . . . Overload Shots . | . . . . . Overflow Damage . | . . . . . Projectiles . | . . . . . Explosions . | . . . . . Melee . | . . . . . Knockbacks . | . . . . . Impact . | . . . . . Kinetic . | . . . . . Secondary . | . . . . . Self-Inflicted Damage . | . . . . . Shots . | . . . . . Rammed . | . . . . . Targets Rammed . | . . . . . Kicked . | . . . . . Crushed . | . . . . . Highest Temperature . | . . . . . Average Temperature . | . . . . . Received Heat Transfer . | . . . . . Siege Activations . | . . . . . Robots Corrupted . | . . . . . Combat Hostiles . | . . . . . Parts Fried . | . . . . . Impact Corruptions . | . . . . . Robots Melted . | . . . . . Combat Hostiles . | . . . . . Parts Melted . | . . . . . Heat Transferred . | . . . . . Parts Sabotaged . | . . . . . Parts Stolen . | . . . . . Parts Stripped . | . . . . . Power Chain Reactions . | . . . . . Missiles Intercepted . | . . . . . Alert | -11 -10 -10 -10 -9 ------- Run | Scr Mat Min Exi Min Peak Influence 50 | . 15 5 . 50 Initial 5 | . . 5 . . Average 11 | . 3 5 . 17 Maximum Alert Level . | . . . . . Low Security (%) 100 | 100 100 100 . 100 Level 1 . | . . . . . Level 2 . | . . . . . Level 3 . | . . . . . Level 4 . | . . . . . Level 5 . | . . . . . High Security . | . . . . . Max Security . | . . . . . Squads Dispatched . | . . . . . Investigation . | . . . . . Extermination . | . . . . . Reinforcement . | . . . . . Assault . | . . . . . Garrison . | . . . . . Intercept . | . . . . . Construction Impeded . | . . . . . Haulers Reinforced . | . . . . . Stealth | -11 -10 -10 -10 -9 --------- Run | Scr Mat Min Exi Min Distress Signals 1 | . 1 . . . Communications Jammed . | . . . . . Distress Signals . | . . . . . Times Spotted 19 | . 4 6 . 9 Peak Tracking Total 6 | . 6 3 . 6 Tactical Retreats 4 | . . 3 . 1 Traps | -11 -10 -10 -10 -9 ------- Run | Scr Mat Min Exi Min Traps Triggered . | . . . . . Indirectly . | . . . . . Trap Hack Attempts . | . . . . . Triggered . | . . . . . Disarmed . | . . . . . Reprogrammed . | . . . . . Reused . | . . . . . Traps Extracted . | . . . . . Installed . | . . . . . Triggered . | . . . . . Machines | -11 -10 -10 -10 -9 ---------- Run | Scr Mat Min Exi Min Machines Disabled . | . . . . . Max in Single Turn . | . . . . . Machines Sabotaged . | . . . . . Garrisons Compromised . | . . . . . Overloaded Fab Kills . | . . . . . Fab Network Shutdowns . | . . . . . Hacking | -11 -10 -10 -10 -9 --------- Run | Scr Mat Min Exi Min Machines Accessed . | . . . . . Terminals . | . . . . . Fabricators . | . . . . . Repair Stations . | . . . . . Recycling Units . | . . . . . Scanalyzers . | . . . . . Garrison Access . | . . . . . Total Hacks . | . . . . . Successful . | . . . . . Failed . | . . . . . Catastrophic . | . . . . . Database Lockouts . | . . . . . Manual . | . . . . . Terminals . | . . . . . Fabricators . | . . . . . Repair Stations . | . . . . . Recycling Units . | . . . . . Scanalyzers . | . . . . . Garrison Access . | . . . . . Terminal Hacks . | . . . . . Fabricator Hacks . | . . . . . Repair Station Hacks . | . . . . . Recycling Unit Hacks . | . . . . . Scanalyzer . | . . . . . Garrison Access Hacks . | . . . . . Unauthorized Hacks . | . . . . . Terminals . | . . . . . Fabricators . | . . . . . Repair Stations . | . . . . . Recycling Units . | . . . . . Scanalyzers . | . . . . . Garrison Access . | . . . . . Data Cores Recovered . | . . . . . Used . | . . . . . Hacking Detections . | . . . . . Full Trace Events . | . . . . . Feedback Events . | . . . . . Feedback Blocked . | . . . . . Robot Schematics Acquired . | . . . . . Robots Built . | . . . . . Matter . | . . . . . Time . | . . . . . Total Robot Build Rating . | . . . . . Part Schematics Acquired . | . . . . . Parts Built . | . . . . . Matter . | . . . . . Time . | . . . . . Total Part Build Rating . | . . . . . Parts Repaired . | . . . . . Time . | . . . . . Parts Recycled . | . . . . . Recycled Matter . | . . . . . Retrieved Matter . | . . . . . Retrieved Components . | . . . . . Parts Scanalyzed . | . . . . . Part Schematics Acquired . | . . . . . Parts Damaged . | . . . . . Bothacking | -11 -10 -10 -10 -9 ------------ Run | Scr Mat Min Exi Min Used RIF Installer . | . . . . . Robots Hacked . | . . . . . Non-combat . | . . . . . Combat . | . . . . . Robot Hacks Applied . | . . . . . Relay Couplers Released . | . . . . . Robots Rewired . | . . . . . Allies Hacked . | . . . . . Hacks Repelled . | . . . . . Allies | -11 -10 -10 -10 -9 -------- Run | Scr Mat Min Exi Min Total Allies 3 | . . . . 3 Largest Group 3 | . . . . 3 Highest-Rated Group 40 | . . . . 40 Highest-Rated Ally 16 | . . . . 16 Total Orders . | . . . . . Ally Attacks 28 | . . . . 28 Total Damage 301 | . . . . 301 Kills 4 | . . . . 4 Allies Corrupted . | . . . . . Allies Melted . | . . . . . Intel | -11 -10 -10 -10 -9 ------- Run | Scr Mat Min Exi Min Robot Analysis Total . | . . . . . Derelict Logs Recovered 2 | . . 1 . 1 Drone Launches . | . . . . . Drone Recoveries . | . . . . . Exploration | -11 -10 -10 -10 -9 ------------- Run | Scr Mat Min Exi Min Turns Passed 360 | 9 34 85 76 156 Spaces Moved 718 | 18 67 170 152 311 Core 718 | 18 67 170 152 311 Treads . | . . . . . Legs . | . . . . . Wheels . | . . . . . Hover . | . . . . . Flight . | . . . . . Fastest Speed 50 | 50 50 50 50 50 Average Speed 50 | 50 50 50 50 50 Slowest Speed 50 | 50 50 50 50 50 Overloaded Moves . | . . . . . Propulsion Burnouts . | . . . . . Robots Hopped . | . . . . . Cave-ins Triggered . | . . . . . Exploration Rate (%) 37 | 3 20 45 54 66 Regions Visited 4 Branch Regions 3 Pre-discovered Areas . | . . . . . Known Exits Taken . | . . . . . Unknown Exits Taken 4 | 1 1 1 1 . Scrap Searched 1 | . . . . 1 Spaces Dug . | . . . . . Terrain Destroyed . | . . . . . Melee . | . . . . . Projectile . | . . . . . AOE . | . . . . . Terrain Rammed . | . . . . . Walls Destroyed . | . . . . . Machines Disabled . | . . . . . Actions | -11 -10 -10 -10 -9 --------- Run | Scr Mat Min Exi Min Total 714 | 17 66 169 151 311 Wait . | . . . . . Move 714 | 17 66 169 151 311 Hop . | . . . . . Pick Up . | . . . . . Fast Attach . | . . . . . Attach . | . . . . . Detach . | . . . . . Swap . | . . . . . Drop . | . . . . . Fire . | . . . . . Melee . | . . . . . Ram . | . . . . . Kick . | . . . . . Crush . | . . . . . Escape Stasis . | . . . . . Rewire . | . . . . . Trap . | . . . . . Miscellaneous . | . . . . . Route ------- -11/Scrapyard -10/Materials -10/Mines -10/Exiles -9/Mines History --------- Turn | Location | Event 4 | -11/Scrapyard | Discovered new exit (range 12) 10 | -11/Scrapyard | Entered Materials 41 | -10/Materials | Discovered new exit (range 6) 44 | -10/Materials | Entered Mines 95 | -10/Mines | Core integrity fell below 50% 113 | -10/Mines | Learned 4 Materials zone layouts 124 | -10/Mines | Core integrity fell below 20% 127 | -10/Mines | Deemed a non-threat by the Exiles lab entrance 127 | -10/Mines | Discovered new exit (range 5) 129 | -10/Mines | Entered Exiles 142 | -10/Exiles | Met 8R-AWN 150 | -10/Exiles | Met EX-HEX 164 | -10/Exiles | Met EX-BIN 170 | -10/Exiles | Aligned with FarCom system 170 | -10/Exiles | Given EX-Vault access code 184 | -10/Exiles | Met EX-DEC 201 | -10/Exiles | Discovered new exit (range 10) 205 | -10/Exiles | Entered Mines 221 | -9/Mines | Assembled infested the area 226 | -9/Mines | Assisted by a Guerilla fighting off Assembled 249 | -9/Mines | Learned 8 Materials zone layouts 256 | -9/Mines | Assisted by bots powering up and referring to "LRC-V3" 305 | -9/Mines | Build established: Mutant 361 | -9/Mines | Destroyed by as-97863 with Assembled Heavy Rifle Last Messages --------------- GOAL=ESCAPE 00205_ Receiving FarCom transmissions... 00221_ ALERT: Infestation in the mines, dispatching Demolisher response squad. 00226_ A derelict emerges from the shadows: "You need to get out of here! I've been tracking a group of Assembled to figure out where they're coming from, and they're closing on this area, come on!" 00249_ Acquired derelict log, extracted data. Data stored: Materials zone layouts (x8). 00256_ Trooper 2a: "Hello LRC-V3. What is your command?" 00256_ Mercenary 2a: "Hello LRC-V3. What is your command?" 00256_ Trooper 2b: "Hello LRC-V3. What is your command?" 00286_ Searching scrap... 00286_ Found Lgt. EM Pulse Cannon. 00286_ Found Shotgun. 00286_ Found Sml. Matter Pod. 00286_ Found Lgt. Armor Plating. 00286_ Found 17 Matter. 00287_ Acquired 17 matter. 00324_ Acquired 10 matter. Map ----- +----------------------------------------------------+ | ????????????????????????????#?????## ####?## | | ??????????????????????????### ##### ##?? | | ??????????????????????????# ##? | | ??????????????????????????# #? | | ????????????????????????# #### # #? | | ???????????????????????????????# ## ## ##? | | ???????????????????????????????#??### ###?# ##?? | | ????????????????????????????????????# #????###??? | | ????????????????????????????????????# #?????????? | | ????????????????????????????????????# #?????????? | | ?????????????????????????? ?????????# #?????????? | | ????????????????????????? ???# #### ###???????? | | ????????????????????????? #???# #???????? | | ?????????????????????????a #???######## #???????? | | ?????????????????????????%a#??????????# #???????? | | ?????????????????????##??!!#??????????# #???????? | | ?????????????????????# ??%!##?????????# ######### | | ?????????????????????# ??= ?????????# # | | ?????????????????????? ## ??????????######### # | | ?????????????????????? ???????????????#### # | | ?????????????????????? #??????????????## | | ??????????????????????? ##??????????#### | | ??????????????????????? ##?????????# | | ???????????????????????# ###???????# ### | | ???????????????????????# ##??????# #?## | | ???????????????????????#@ #??????# #??## | | ???????????????????????# #??????# #???#### | | ???????????????????????## #??????# #??????? | | ????????????????????????# ###??????# #???##?? | | ???????????????????????## ##????????# #??## # | | ??????????????????????## ##????????# #??# | | ??????????????????????# ##???????# #??# | | ??????????????????????# #???????# #??# | | ??????????????????????# ######### #??## | | ??????????????????????# #???#### | | ??????????????????????## ########??????? | | ???????????????????????## ##### #?????????????? | | ????????????????????????# #???# #????#########? | | ???????????????????????# #??# #????# ## ## | | ???????????????????????# #??# #????# # # | | ???????????????????????# #??# ###??# # | | ???????????????????????## ?## ##?# ## | | ????????????????????????### # #?# ##? | | ??????????????????????????## ## $ ### #?? | | ????????????????????????????##### ## ### | | ???????????????????????????????## ### | | ????????????????????????????#### ##?# ### | | ????????????????????????????# #??# #?? | | ???????????????????????????# #??# ?? | | ???????????????????????????# #??## ? | +----------------------------------------------------+ Best States ------------- Heat Dissipation 25 Energy Generation 5 Energy Capacity 100 Matter Stores 127 Matter Capacity 300 Sight Range 16 Terrain Scan Density 10 Evasion (%) 50 Item Schematics ----------------- None Robot Schematics ------------------ None Fabricated ------------ Nothing Alien Tech Used ----------------- None Achievements -------------- None Challenges ------------ None Game ------ Seed SignalAngularManipulator Manual? 0 Play Time 00:07:45 Cumulative 330.8 hours Start 2020.09.21 @ 17:23:12 End 2020.09.21 @ 17:28:54 Sessions 1 Manual Loads 0 Difficulty Rogue Special Mode None Game No. 579 Rogue 579 Adventurer 0 Explorer 0 Win Type - Total 50 Types 37/4/3/2/1/1/2/0/0 Lore% 91 Gallery% 89 Achievement% 72 Wizard Run 0 Options --------- ASCII 1 Keyboard 1 Movement Numpad Keybinds 0 Fullscreen 2 Font 24/Terminus Map View 76x50 Tactical HUD 1 Map Filters NONE Filters NONE Steam 1 RUN: fe9df39d-9f18-45ed-8780-dcb08aa87a54